[Event "Live Chess"]
[Site "Chess.com"]
[Date "2023.05.21"]
[Round "-"]
[White "YF22Raptor"]
[Black "LiamClery2020"]
[Result "0-1"]
[WhiteElo "1020"]
[BlackElo "2005"]
[TimeControl "300"]
[EndTime "4:38:50 PDT"]
[Termination "LiamClery2020 won by checkmate"]

1. e4 {[%clk 0:04:59]} 1... Nf6 {[%clk 0:04:59.2]} 2. Nc3 {[%clk 0:04:57.2]}
2... e5 {[%clk 0:04:57.9]} 3. Nf3 {[%clk 0:04:53.2]} 3... Nc6 {[%clk 0:04:56.4]}
4. d4 {[%clk 0:04:46.5]} 4... exd4 {[%clk 0:04:51.6]} 5. Nxd4 {[%clk 0:04:45.4]}
5... Bb4 {[%clk 0:04:49.6]} 6. Nxc6 {[%clk 0:04:43.2]} 6... bxc6 {[%clk
0:04:48.3]} 7. Bd3 {[%clk 0:04:36.4]} 7... O-O {[%clk 0:04:46.8]} 8. Bd2 {[%clk
0:04:35]} 8... d5 {[%clk 0:04:45.4]} 9. O-O {[%clk 0:04:30.1]} 9... Bxc3 {[%clk
0:04:42.1]} 10. Bxc3 {[%clk 0:04:28.5]} 10... dxe4 {[%clk 0:04:40.9]} 11. Be2
{[%clk 0:04:20.2]} 11... Bf5 {[%clk 0:04:38.4]} 12. Qxd8 {[%clk 0:04:17.4]}
12... Raxd8 {[%clk 0:04:38.3]} 13. Rad1 {[%clk 0:04:16.3]} 13... Nd5 {[%clk
0:04:36.2]} 14. Bd4 {[%clk 0:04:01.6]} 14... a6 {[%clk 0:04:34.1]} 15. Bxa6
{[%clk 0:03:59.4]} 15... Nb4 {[%clk 0:04:23.5]} 16. Bc4 {[%clk 0:03:54.6]} 16...
Nxc2 {[%clk 0:04:21.9]} 17. Bb3 {[%clk 0:03:44.6]} 17... Nxd4 {[%clk 0:04:20.8]}
18. Rfe1 {[%clk 0:03:40.6]} 18... Nxb3 {[%clk 0:04:17.1]} 19. axb3 {[%clk
0:03:38.3]} 19... Rfe8 {[%clk 0:04:13.8]} 20. Rc1 {[%clk 0:03:36.8]} 20... Re6
{[%clk 0:04:10.9]} 21. h3 {[%clk 0:03:33.6]} 21... Rd2 {[%clk 0:04:08.3]} 22. g4
{[%clk 0:03:29.9]} 22... Bg6 {[%clk 0:04:06.8]} 23. h4 {[%clk 0:03:28.5]} 23...
h5 {[%clk 0:04:03.3]} 24. gxh5 {[%clk 0:03:22.1]} 24... Bxh5 {[%clk 0:04:02.2]}
25. Rb1 {[%clk 0:03:20.7]} 25... Bf3 {[%clk 0:04:01.1]} 26. Re3 {[%clk
0:03:17.4]} 26... Rg6+ {[%clk 0:03:59.2]} 27. Kf1 {[%clk 0:03:14.2]} 27... Rgd6
{[%clk 0:03:54.1]} 28. Ree1 {[%clk 0:03:09.8]} 28... Rh6 {[%clk 0:03:49.9]} 29.
Re3 {[%clk 0:03:06.1]} 29... Rxh4 {[%clk 0:03:48.3]} 30. Rc3 {[%clk 0:03:02.5]}
30... Rh1# {[%clk 0:03:47.1]} 0-1

[Event "Live Chess"]
[Site "Chess.com"]
[Date "2023.05.21"]
[Round "-"]
[White "HoarseyHorsey"]
[Black "stevefairhurst"]
[Result "1-0"]
[WhiteElo "1455"]
[BlackElo "585"]
[TimeControl "300"]
[EndTime "4:39:11 PDT"]
[Termination "HoarseyHorsey won by resignation"]

1. d4 {[%clk 0:04:58.5]} 1... d5 {[%clk 0:04:58.8]} 2. c4 {[%clk 0:04:57.7]}
2... c5 {[%clk 0:04:56.1]} 3. cxd5 {[%clk 0:04:55]} 3... cxd4 {[%clk 0:04:54.6]}
4. Qxd4 {[%clk 0:04:51.8]} 4... e6 {[%clk 0:04:52.3]} 5. Nc3 {[%clk 0:04:49.7]}
5... exd5 {[%clk 0:04:49.3]} 6. Qxd5 {[%clk 0:04:48.3]} 6... Be6 {[%clk
0:04:42.4]} 7. Qxd8+ {[%clk 0:04:44.1]} 7... Kxd8 {[%clk 0:04:41.2]} 8. Bf4
{[%clk 0:04:41.1]} 8... Nc6 {[%clk 0:04:35.7]} 9. Rd1+ {[%clk 0:04:22.6]} 9...
Ke7 {[%clk 0:04:30.6]} 10. a3 {[%clk 0:04:19.9]} 10... b5 {[%clk 0:04:23.2]} 11.
Nxb5 {[%clk 0:04:14.7]} 11... Bb3 {[%clk 0:04:17.4]} 12. Rc1 {[%clk 0:04:05.8]}
12... Nd4 {[%clk 0:04:13.7]} 13. Nxd4 {[%clk 0:04:03.9]} 13... Rd8 {[%clk
0:04:10.4]} 14. Nxb3 {[%clk 0:04:01.2]} 14... Ke8 {[%clk 0:04:05.3]} 15. e3
{[%clk 0:03:59.5]} 15... Nf6 {[%clk 0:03:57.6]} 16. Bb5+ {[%clk 0:03:54]} 16...
Ke7 {[%clk 0:03:54.2]} 17. Nf3 {[%clk 0:03:48]} 17... Ne4 {[%clk 0:03:52.3]} 18.
O-O {[%clk 0:03:42]} 18... Nd2 {[%clk 0:03:38.2]} 19. Rc7+ {[%clk 0:03:31.6]}
19... Kf6 {[%clk 0:03:38.1]} 20. Nfxd2 {[%clk 0:03:28.8]} 20... Bd6 {[%clk
0:03:28.3]} 21. Bxd6 {[%clk 0:03:24.1]} 21... Rxd6 {[%clk 0:03:26.9]} 22. Rxa7
{[%clk 0:03:16.5]} 22... Rhd8 {[%clk 0:03:23.1]} 23. Nd4 {[%clk 0:03:12.9]}
23... Ke5 {[%clk 0:03:19.1]} 24. N2f3+ {[%clk 0:02:51]} 24... Ke4 {[%clk
0:03:16.9]} 25. Bc6+ {[%clk 0:02:43.3]} 25... Kd3 {[%clk 0:03:12.5]} 26. Bb5+
{[%clk 0:02:34.4]} 26... Ke4 {[%clk 0:03:10.2]} 27. Rxf7 {[%clk 0:02:31.3]}
27... Rb6 {[%clk 0:03:02.5]} 28. Rxg7 {[%clk 0:02:22.3]} 28... Rc8 {[%clk
0:02:54]} 29. Rg4+ {[%clk 0:02:16.9]} 29... Kd5 {[%clk 0:02:51.5]} 30. Rd1
{[%clk 0:02:13.1]} 30... Kc5 {[%clk 0:02:48.4]} 31. Rg5+ {[%clk 0:02:05.7]}
31... Kd6 {[%clk 0:02:46.3]} 32. Rh5 {[%clk 0:01:48.6]} 32... h6 {[%clk
0:02:43.3]} 33. Rxh6+ {[%clk 0:01:47.2]} 33... Kc7 {[%clk 0:02:41.9]} 34. Rxb6
{[%clk 0:01:45.9]} 34... Kxb6 {[%clk 0:02:40.8]} 35. h4 {[%clk 0:01:42.9]} 35...
Kc7 {[%clk 0:02:39]} 36. Rc1+ {[%clk 0:01:40.2]} 36... Kd8 {[%clk 0:02:33.4]}
37. Rxc8+ {[%clk 0:01:38.7]} 37... Kxc8 {[%clk 0:02:32.2]} 38. h5 {[%clk
0:01:38.2]} 1-0

[Event "Live Chess"]
[Site "Chess.com"]
[Date "2023.05.21"]
[Round "-"]
[White "LiamBellwood"]
[Black "Twickenham2014"]
[Result "1-0"]
[WhiteElo "1906"]
[BlackElo "2263"]
[TimeControl "300"]
[EndTime "4:39:18 PDT"]
[Termination "LiamBellwood won by resignation"]

1. d4 {[%clk 0:04:58.4]} 1... d5 {[%clk 0:04:58.2]} 2. Nc3 {[%clk 0:04:56.4]}
2... Nf6 {[%clk 0:04:57.1]} 3. Bf4 {[%clk 0:04:49.3]} 3... e6 {[%clk 0:04:45.3]}
4. Nb5 {[%clk 0:04:48.1]} 4... Bb4+ {[%clk 0:04:43.8]} 5. c3 {[%clk 0:04:46.3]}
5... Ba5 {[%clk 0:04:43.4]} 6. b4 {[%clk 0:04:46.2]} 6... Bb6 {[%clk 0:04:42.8]}
7. a4 {[%clk 0:04:45.4]} 7... a6 {[%clk 0:04:38.8]} 8. a5 {[%clk 0:04:44.7]}
8... axb5 {[%clk 0:04:38.2]} 9. axb6 {[%clk 0:04:44.6]} 9... Rxa1 {[%clk
0:04:34.3]} 10. Qxa1 {[%clk 0:04:44.5]} 10... cxb6 {[%clk 0:04:33.2]} 11. Bxb8
{[%clk 0:04:43.2]} 11... O-O {[%clk 0:04:27.7]} 12. Nf3 {[%clk 0:04:41.6]} 12...
Ne4 {[%clk 0:04:26.9]} 13. Bg3 {[%clk 0:04:38.6]} 13... g5 {[%clk 0:04:22]} 14.
e3 {[%clk 0:04:34.2]} 14... h5 {[%clk 0:04:20.8]} 15. h4 {[%clk 0:04:33.1]}
15... g4 {[%clk 0:04:19.9]} 16. Ne5 {[%clk 0:04:32.2]} 16... Nxg3 {[%clk
0:04:19.2]} 17. fxg3 {[%clk 0:04:31.1]} 17... f6 {[%clk 0:04:14.7]} 18. Ng6
{[%clk 0:04:21.1]} 18... Rf7 {[%clk 0:04:13]} 19. Bxb5 {[%clk 0:04:13.8]} 19...
e5 {[%clk 0:04:12.2]} 20. O-O {[%clk 0:04:11.9]} 20... Kg7 {[%clk 0:04:06.9]}
21. Qb1 {[%clk 0:03:56.1]} 21... Qc7 {[%clk 0:03:46.6]} 22. dxe5 {[%clk
0:03:52.8]} 22... Qxc3 {[%clk 0:03:39.9]} 23. exf6+ {[%clk 0:03:48]} 23... Rxf6
{[%clk 0:03:35.7]} 24. Rxf6 {[%clk 0:03:46.9]} 24... Qxe3+ {[%clk 0:03:34.9]}
25. Rf2 {[%clk 0:03:44.2]} 1-0

[Event "Live Chess"]
[Site "Chess.com"]
[Date "2023.05.21"]
[Round "-"]
[White "wot-not"]
[Black "Abde2012"]
[Result "1-0"]
[WhiteElo "1552"]
[BlackElo "752"]
[TimeControl "300"]
[EndTime "4:39:23 PDT"]
[Termination "wot-not won by resignation"]

1. e4 {[%clk 0:04:58.7]} 1... c6 {[%clk 0:04:57]} 2. f4 {[%clk 0:04:57.9]} 2...
d5 {[%clk 0:04:56.2]} 3. e5 {[%clk 0:04:56.9]} 3... Bf5 {[%clk 0:04:52.7]} 4.
Nf3 {[%clk 0:04:56.7]} 4... e6 {[%clk 0:04:52.1]} 5. d4 {[%clk 0:04:56.4]} 5...
Bb4+ {[%clk 0:04:50.5]} 6. c3 {[%clk 0:04:54.7]} 6... Ba5 {[%clk 0:04:49.7]} 7.
Bd3 {[%clk 0:04:54]} 7... a6 {[%clk 0:04:46.5]} 8. Bxf5 {[%clk 0:04:52.4]} 8...
exf5 {[%clk 0:04:44.8]} 9. Qd3 {[%clk 0:04:50.4]} 9... Ne7 {[%clk 0:04:40.6]}
10. O-O {[%clk 0:04:49.1]} 10... Bb6 {[%clk 0:04:38]} 11. Bd2 {[%clk 0:04:46.5]}
11... Ba7 {[%clk 0:04:37.3]} 12. Be1 {[%clk 0:04:45.6]} 12... Nd7 {[%clk
0:04:36.5]} 13. Bh4 {[%clk 0:04:44.6]} 13... O-O {[%clk 0:04:33.7]} 14. Bxe7
{[%clk 0:04:40]} 14... Qxe7 {[%clk 0:04:33.1]} 15. Qxf5 {[%clk 0:04:39]} 15...
f6 {[%clk 0:04:22.9]} 16. e6 {[%clk 0:04:23.3]} 16... Nb6 {[%clk 0:04:16.2]} 17.
Nbd2 {[%clk 0:04:18.4]} 17... g6 {[%clk 0:04:04.2]} 18. Qh3 {[%clk 0:04:13.5]}
18... f5 {[%clk 0:03:59]} 19. Rae1 {[%clk 0:04:06.7]} 19... Bb8 {[%clk
0:03:56.6]} 20. Ng5 {[%clk 0:04:04.3]} 20... Rf6 {[%clk 0:03:46.5]} 21. Nb3
{[%clk 0:03:56.2]} 21... Rxe6 {[%clk 0:03:45.3]} 22. Rxe6 {[%clk 0:03:53.5]} 1-0

[Event "Live Chess"]
[Site "Chess.com"]
[Date "2023.05.21"]
[Round "-"]
[White "mattihelenius2"]
[Black "ameetghasi100"]
[Result "0-1"]
[WhiteElo "492"]
[BlackElo "2592"]
[TimeControl "300"]
[EndTime "4:39:26 PDT"]
[Termination "ameetghasi100 won by checkmate"]

1. d4 {[%clk 0:04:57.1]} 1... d5 {[%clk 0:04:59.9]} 2. c4 {[%clk 0:04:52.2]}
2... c5 {[%clk 0:04:59.8]} 3. cxd5 {[%clk 0:04:46.5]} 3... Nf6 {[%clk
0:04:59.7]} 4. Nc3 {[%clk 0:04:30.1]} 4... cxd4 {[%clk 0:04:57.6]} 5. Qxd4
{[%clk 0:04:26.4]} 5... e6 {[%clk 0:04:57.2]} 6. Nf3 {[%clk 0:04:23]} 6... exd5
{[%clk 0:04:54.9]} 7. Bg5 {[%clk 0:04:21]} 7... Nc6 {[%clk 0:04:54.1]} 8. Qd3
{[%clk 0:04:11.3]} 8... Bb4 {[%clk 0:04:48.5]} 9. e3 {[%clk 0:04:06.5]} 9... O-O
{[%clk 0:04:43.4]} 10. a3 {[%clk 0:03:56.9]} 10... Ba5 {[%clk 0:04:40.4]} 11.
Be2 {[%clk 0:03:44.9]} 11... Bg4 {[%clk 0:04:38.2]} 12. b4 {[%clk 0:03:32.2]}
12... Bb6 {[%clk 0:04:36.8]} 13. Nb5 {[%clk 0:03:29.1]} 13... Bxf3 {[%clk
0:04:33.6]} 14. Bxf3 {[%clk 0:03:27.6]} 14... Ne5 {[%clk 0:04:32.9]} 15. Qe2
{[%clk 0:03:07.9]} 15... h6 {[%clk 0:04:30.8]} 16. Bf4 {[%clk 0:02:55.8]} 16...
Ng6 {[%clk 0:04:28.4]} 17. Qd1 {[%clk 0:02:46]} 17... Nxf4 {[%clk 0:04:25.9]}
18. exf4 {[%clk 0:02:32.8]} 18... Qe8+ {[%clk 0:04:12.4]} 19. Kf1 {[%clk
0:02:29.6]} 19... Qxb5+ {[%clk 0:04:05.8]} 20. Be2 {[%clk 0:02:25.8]} 20... Qd7
{[%clk 0:04:05.7]} 21. Rc1 {[%clk 0:02:23.4]} 21... Qd6 {[%clk 0:04:04.3]} 22.
h3 {[%clk 0:02:17.8]} 22... Qxf4 {[%clk 0:04:02.4]} 23. Qd3 {[%clk 0:01:47.7]}
23... Qxf2# {[%clk 0:04:00.2]} 0-1

[Event "Live Chess"]
[Site "Chess.com"]
[Date "2023.05.21"]
[Round "-"]
[White "booktrunk"]
[Black "chessfiction"]
[Result "0-1"]
[WhiteElo "1280"]
[BlackElo "2311"]
[TimeControl "300"]
[EndTime "4:39:28 PDT"]
[Termination "chessfiction won by checkmate"]

1. d4 {[%clk 0:04:59]} 1... d5 {[%clk 0:04:58.3]} 2. Nc3 {[%clk 0:04:58]} 2...
e5 {[%clk 0:04:57.5]} 3. dxe5 {[%clk 0:04:57]} 3... d4 {[%clk 0:04:56.8]} 4. Ne4
{[%clk 0:04:55.1]} 4... Nc6 {[%clk 0:04:56]} 5. e3 {[%clk 0:04:54.1]} 5... Bf5
{[%clk 0:04:54.8]} 6. Ng3 {[%clk 0:04:51.5]} 6... Bg6 {[%clk 0:04:54]} 7. exd4
{[%clk 0:04:50.2]} 7... Nxd4 {[%clk 0:04:53.2]} 8. Bd3 {[%clk 0:04:46.4]} 8...
Bc5 {[%clk 0:04:52.4]} 9. Bxg6 {[%clk 0:04:44.6]} 9... hxg6 {[%clk 0:04:52.3]}
10. N1e2 {[%clk 0:04:42.4]} 10... Qh4 {[%clk 0:04:49.1]} 11. O-O {[%clk
0:04:29.7]} 11... Qxh2# {[%clk 0:04:45.7]} 0-1

[Event "Live Chess"]
[Site "Chess.com"]
[Date "2023.05.21"]
[Round "-"]
[White "Shepherds_Pie"]
[Black "peter-785"]
[Result "1-0"]
[WhiteElo "1950"]
[BlackElo "1182"]
[TimeControl "300"]
[EndTime "4:39:51 PDT"]
[Termination "Shepherds_Pie won by resignation"]

1. c4 {[%clk 0:04:58.3]} 1... c5 {[%clk 0:04:59.3]} 2. Nc3 {[%clk 0:04:56.9]}
2... d6 {[%clk 0:04:58.9]} 3. g3 {[%clk 0:04:55.6]} 3... e6 {[%clk 0:04:58.1]}
4. Bg2 {[%clk 0:04:53.6]} 4... Nc6 {[%clk 0:04:57.6]} 5. Nf3 {[%clk 0:04:52.4]}
5... Qc7 {[%clk 0:04:57.1]} 6. O-O {[%clk 0:04:51]} 6... Nf6 {[%clk 0:04:56.5]}
7. d4 {[%clk 0:04:48.4]} 7... cxd4 {[%clk 0:04:53.2]} 8. Nxd4 {[%clk 0:04:47.3]}
8... Nxd4 {[%clk 0:04:51.7]} 9. Qxd4 {[%clk 0:04:45.1]} 9... Be7 {[%clk
0:04:43.1]} 10. Nb5 {[%clk 0:04:42]} 10... Qd7 {[%clk 0:04:28.3]} 11. b3 {[%clk
0:04:29.5]} 11... a6 {[%clk 0:04:27.6]} 12. Nc3 {[%clk 0:04:27.6]} 12... O-O
{[%clk 0:04:13.5]} 13. Bb2 {[%clk 0:04:24.3]} 13... e5 {[%clk 0:04:08.2]} 14.
Qd3 {[%clk 0:04:22]} 14... Rb8 {[%clk 0:04:04.8]} 15. e4 {[%clk 0:04:20.8]}
15... b6 {[%clk 0:03:56.1]} 16. a4 {[%clk 0:04:17.9]} 16... Bb7 {[%clk
0:03:54.9]} 17. Rad1 {[%clk 0:04:15.9]} 17... Rfd8 {[%clk 0:03:44.4]} 18. Ba3
{[%clk 0:03:56]} 18... Ne8 {[%clk 0:03:39.8]} 19. Rfe1 {[%clk 0:03:54.2]} 19...
Qg4 {[%clk 0:03:25.3]} 20. h3 {[%clk 0:03:49.9]} 20... Qg6 {[%clk 0:03:22.2]}
21. Nd5 {[%clk 0:03:35]} 21... Bxd5 {[%clk 0:03:18.4]} 22. cxd5 {[%clk
0:03:33.9]} 22... b5 {[%clk 0:03:10.8]} 23. axb5 {[%clk 0:03:28.1]} 23... axb5
{[%clk 0:03:09.6]} 24. Bc1 {[%clk 0:03:26.6]} 24... f6 {[%clk 0:02:21]} 25. Be3
{[%clk 0:03:22.9]} 25... h5 {[%clk 0:02:10.5]} 26. h4 {[%clk 0:03:20.2]} 26...
Qh7 {[%clk 0:02:07.4]} 27. Rc1 {[%clk 0:03:16.3]} 27... b4 {[%clk 0:02:02.1]}
28. Rc6 {[%clk 0:03:14]} 28... Rdc8 {[%clk 0:01:51.8]} 29. Rec1 {[%clk
0:03:12.6]} 29... Rxc6 {[%clk 0:01:49.7]} 30. Rxc6 {[%clk 0:03:11.3]} 30... g6
{[%clk 0:01:27.2]} 31. Qc4 {[%clk 0:03:07.1]} 31... Qf7 {[%clk 0:01:24.6]} 32.
Rc8 {[%clk 0:03:03.2]} 32... Ra8 {[%clk 0:01:17.2]} 1-0

[Event "Live Chess"]
[Site "Chess.com"]
[Date "2023.05.21"]
[Round "-"]
[White "ChessTWSS"]
[Black "defenderalist"]
[Result "0-1"]
[WhiteElo "1600"]
[BlackElo "1674"]
[TimeControl "300"]
[EndTime "4:39:59 PDT"]
[Termination "defenderalist won by resignation"]

1. d4 {[%clk 0:04:58.4]} 1... Nf6 {[%clk 0:04:58.4]} 2. Bf4 {[%clk 0:04:57]}
2... e6 {[%clk 0:04:57.6]} 3. e3 {[%clk 0:04:55.9]} 3... d5 {[%clk 0:04:57.1]}
4. c3 {[%clk 0:04:51.7]} 4... Bd6 {[%clk 0:04:55.9]} 5. Bg3 {[%clk 0:04:50.1]}
5... Bxg3 {[%clk 0:04:54.6]} 6. hxg3 {[%clk 0:04:48.8]} 6... b6 {[%clk
0:04:53.8]} 7. Nd2 {[%clk 0:04:46.7]} 7... Bb7 {[%clk 0:04:53.3]} 8. Ngf3 {[%clk
0:04:44.7]} 8... Nbd7 {[%clk 0:04:52.8]} 9. Qc2 {[%clk 0:04:36.8]} 9... h6
{[%clk 0:04:51.7]} 10. Ne5 {[%clk 0:04:32.5]} 10... Nxe5 {[%clk 0:04:49.3]} 11.
dxe5 {[%clk 0:04:32.4]} 11... Nd7 {[%clk 0:04:48]} 12. f4 {[%clk 0:04:30.3]}
12... Qe7 {[%clk 0:04:46.6]} 13. O-O-O {[%clk 0:04:26.6]} 13... c5 {[%clk
0:04:45.5]} 14. Bb5 {[%clk 0:04:14.4]} 14... O-O-O {[%clk 0:04:41.3]} 15. Bxd7+
{[%clk 0:04:13.1]} 15... Rxd7 {[%clk 0:04:38.6]} 16. c4 {[%clk 0:04:11.7]} 16...
d4 {[%clk 0:04:36.5]} 17. g4 {[%clk 0:04:01.1]} 17... dxe3 {[%clk 0:04:32.8]}
18. Nf3 {[%clk 0:03:52]} 18... Rhd8 {[%clk 0:04:26.4]} 19. Qe2 {[%clk
0:03:41.6]} 19... Rxd1+ {[%clk 0:04:02.3]} 20. Rxd1 {[%clk 0:03:40]} 20... Bxf3
{[%clk 0:03:58.9]} 21. Rxd8+ {[%clk 0:03:36.1]} 21... Qxd8 {[%clk 0:03:55.4]}
22. Qxf3 {[%clk 0:03:32.7]} 22... Qd2+ {[%clk 0:03:52.7]} 23. Kb1 {[%clk
0:03:26.8]} 23... Kb8 {[%clk 0:03:44.5]} 24. a4 {[%clk 0:03:11.5]} 24... e2
{[%clk 0:03:42.9]} 25. Qc6 {[%clk 0:02:56.4]} 25... Qd3+ {[%clk 0:03:16.7]} 26.
Ka2 {[%clk 0:02:51.4]} 26... Qxc4+ {[%clk 0:03:15.7]} 27. b3 {[%clk 0:02:49.9]}
27... Qc2+ {[%clk 0:03:14.7]} 28. Ka3 {[%clk 0:02:48.8]} 28... Qc1+ {[%clk
0:03:06.3]} 29. Ka2 {[%clk 0:02:46.5]} 29... Qd2+ {[%clk 0:03:01.6]} 30. Ka3
{[%clk 0:02:43.6]} 30... Qb4+ {[%clk 0:03:00.1]} 31. Ka2 {[%clk 0:02:41.3]}
31... e1=Q {[%clk 0:02:52.8]} 32. Qe8+ {[%clk 0:02:39.3]} 32... Kb7 {[%clk
0:02:52]} 33. Qd7+ {[%clk 0:02:35.1]} 33... Ka6 {[%clk 0:02:49.5]} 34. Qc8+
{[%clk 0:02:29.6]} 34... Ka5 {[%clk 0:02:48.1]} 35. Qa8 {[%clk 0:02:25.8]} 35...
Qe2+ {[%clk 0:02:39.6]} 0-1

[Event "Live Chess"]
[Site "Chess.com"]
[Date "2023.05.21"]
[Round "-"]
[White "Conradical12"]
[Black "Ian-Morley"]
[Result "1-0"]
[WhiteElo "1573"]
[BlackElo "1041"]
[TimeControl "300"]
[EndTime "4:40:09 PDT"]
[Termination "Conradical12 won by resignation"]

1. e4 {[%clk 0:04:58.9]} 1... d5 {[%clk 0:04:59]} 2. exd5 {[%clk 0:04:57.9]}
2... Qxd5 {[%clk 0:04:58.5]} 3. Nc3 {[%clk 0:04:57.5]} 3... Qd6 {[%clk
0:04:57.3]} 4. Nf3 {[%clk 0:04:56]} 4... Nf6 {[%clk 0:04:39.8]} 5. Be2 {[%clk
0:04:52.1]} 5... a6 {[%clk 0:04:36.8]} 6. O-O {[%clk 0:04:51.6]} 6... b5 {[%clk
0:04:35.6]} 7. Re1 {[%clk 0:04:50.9]} 7... Bb7 {[%clk 0:04:34]} 8. d3 {[%clk
0:04:46.7]} 8... Nbd7 {[%clk 0:04:31.4]} 9. g3 {[%clk 0:04:45.2]} 9... e6 {[%clk
0:04:30.3]} 10. Bf4 {[%clk 0:04:43.5]} 10... Qb6 {[%clk 0:04:28.2]} 11. a4
{[%clk 0:04:40.8]} 11... Nd5 {[%clk 0:04:26.4]} 12. Nxd5 {[%clk 0:04:38.1]}
12... Bxd5 {[%clk 0:04:24.4]} 13. axb5 {[%clk 0:04:37.3]} 13... axb5 {[%clk
0:04:22.4]} 14. Rxa8+ {[%clk 0:04:34.7]} 14... Bxa8 {[%clk 0:04:20.9]} 15. c4
{[%clk 0:04:21.7]} 15... Bc5 {[%clk 0:04:16.4]} 16. d4 {[%clk 0:04:17.6]} 16...
Bb4 {[%clk 0:04:13.7]} 17. Rf1 {[%clk 0:04:10]} 17... bxc4 {[%clk 0:04:12.2]}
18. Bxc4 {[%clk 0:04:08.9]} 18... O-O {[%clk 0:04:08.8]} 19. d5 {[%clk
0:04:07.7]} 19... exd5 {[%clk 0:04:07.2]} 20. Bd3 {[%clk 0:04:05.5]} 20... Bc5
{[%clk 0:03:59.1]} 21. Ne5 {[%clk 0:04:01.6]} 21... Nxe5 {[%clk 0:03:57.8]} 22.
Bxe5 {[%clk 0:04:00.4]} 22... f6 {[%clk 0:03:52.4]} 23. Qh5 {[%clk 0:03:56.6]}
23... g6 {[%clk 0:03:32.4]} 24. Bxg6 {[%clk 0:03:49.4]} 24... Bxf2+ {[%clk
0:03:24.4]} 25. Rxf2 {[%clk 0:03:42]} 25... Rf7 {[%clk 0:03:14.1]} 26. Bxf7+
{[%clk 0:03:39.1]} 26... Kg7 {[%clk 0:03:10.5]} 27. Bxf6+ {[%clk 0:03:34.1]}
27... Kf8 {[%clk 0:03:07.8]} 28. Qh6+ {[%clk 0:03:17.2]} 28... Kxf7 {[%clk
0:03:05.1]} 29. Bd4+ {[%clk 0:03:12.7]} 1-0

[Event "Live Chess"]
[Site "Chess.com"]
[Date "2023.05.21"]
[Round "-"]
[White "WilliWeisswurst"]
[Black "McSlash1"]
[Result "0-1"]
[WhiteElo "1772"]
[BlackElo "2003"]
[TimeControl "300"]
[EndTime "4:40:19 PDT"]
[Termination "McSlash1 won on time"]

1. e4 {[%clk 0:04:57.4]} 1... c5 {[%clk 0:04:59.5]} 2. Nf3 {[%clk 0:04:56.6]}
2... d6 {[%clk 0:04:59]} 3. d4 {[%clk 0:04:56]} 3... cxd4 {[%clk 0:04:58.9]} 4.
Nxd4 {[%clk 0:04:55.6]} 4... Nf6 {[%clk 0:04:58.8]} 5. Nc3 {[%clk 0:04:55]} 5...
g6 {[%clk 0:04:58.3]} 6. f4 {[%clk 0:04:48.8]} 6... Nc6 {[%clk 0:04:56.5]} 7.
Be3 {[%clk 0:04:44.5]} 7... Bg7 {[%clk 0:04:54.9]} 8. Qd2 {[%clk 0:04:39.4]}
8... Ng4 {[%clk 0:04:53.6]} 9. Nxc6 {[%clk 0:04:32]} 9... bxc6 {[%clk
0:04:53.5]} 10. O-O-O {[%clk 0:04:16.7]} 10... Nxe3 {[%clk 0:04:51.6]} 11. Qxe3
{[%clk 0:04:15.8]} 11... O-O {[%clk 0:04:51.5]} 12. e5 {[%clk 0:04:12.9]} 12...
d5 {[%clk 0:04:48.2]} 13. Qc5 {[%clk 0:03:56.3]} 13... Bf5 {[%clk 0:04:38.8]}
14. Qxc6 {[%clk 0:03:35.1]} 14... e6 {[%clk 0:04:38.7]} 15. Ba6 {[%clk
0:03:11.9]} 15... Qb6 {[%clk 0:04:29.7]} 16. Qxb6 {[%clk 0:03:04.7]} 16... axb6
{[%clk 0:04:29.6]} 17. Be2 {[%clk 0:03:03.7]} 17... Rfc8 {[%clk 0:04:27]} 18. g4
{[%clk 0:03:02.1]} 18... Be4 {[%clk 0:04:19.5]} 19. Nxe4 {[%clk 0:03:00.4]}
19... dxe4 {[%clk 0:04:19.4]} 20. a3 {[%clk 0:02:34.8]} 20... Ra4 {[%clk
0:04:14.5]} 21. Rd6 {[%clk 0:02:25.5]} 21... e3 {[%clk 0:04:09.3]} 22. Rf1
{[%clk 0:02:21.3]} 22... Bf8 {[%clk 0:04:06]} 23. Rxb6 {[%clk 0:02:13.3]} 23...
Rd4 {[%clk 0:04:05.2]} 24. Rb3 {[%clk 0:01:27]} 24... Rd2 {[%clk 0:04:02.6]} 25.
Bd3 {[%clk 0:01:25.8]} 25... Rxh2 {[%clk 0:03:59.1]} 26. Re1 {[%clk 0:01:15.2]}
26... Be7 {[%clk 0:03:48.8]} 27. Rxe3 {[%clk 0:01:04.8]} 27... h5 {[%clk
0:03:46.5]} 28. gxh5 {[%clk 0:00:56]} 28... Rxh5 {[%clk 0:03:44.8]} 29. Re1
{[%clk 0:00:46]} 29... g5 {[%clk 0:03:39.2]} 30. fxg5 {[%clk 0:00:44.4]} 30...
Bxg5+ {[%clk 0:03:38]} 31. Kb1 {[%clk 0:00:44.1]} 31... Bf4 {[%clk 0:03:36.7]}
32. Rg1+ {[%clk 0:00:42.9]} 32... Kf8 {[%clk 0:03:35.7]} 33. Rb4 {[%clk
0:00:37.7]} 33... Bxe5 {[%clk 0:03:33.5]} 34. Rbg4 {[%clk 0:00:36.1]} 34... Ke7
{[%clk 0:03:31.5]} 35. Ra4 {[%clk 0:00:32.1]} 35... Rb8 {[%clk 0:03:28.9]} 36.
Rb4 {[%clk 0:00:29]} 36... Rc8 {[%clk 0:03:18.5]} 37. Rb7+ {[%clk 0:00:28]}
37... Kf8 {[%clk 0:03:15.3]} 38. Rxf7+ {[%clk 0:00:27.2]} 38... Kxf7 {[%clk
0:03:10.5]} 39. Bg6+ {[%clk 0:00:26.9]} 39... Kf6 {[%clk 0:03:09.1]} 40. Bxh5
{[%clk 0:00:26.6]} 40... Rb8 {[%clk 0:03:07.6]} 41. b3 {[%clk 0:00:25]} 41...
Rh8 {[%clk 0:03:03.9]} 42. Be2 {[%clk 0:00:22.2]} 42... Ke7 {[%clk 0:02:59.5]}
43. Bd3 {[%clk 0:00:20.7]} 43... Kd6 {[%clk 0:02:58.1]} 44. Ka2 {[%clk
0:00:19.6]} 44... Rh2 {[%clk 0:02:55.2]} 45. a4 {[%clk 0:00:18.1]} 45... Kc5
{[%clk 0:02:51.8]} 46. a5 {[%clk 0:00:17.2]} 46... Bc3 {[%clk 0:02:50]} 47. a6
{[%clk 0:00:16.1]} 47... Kb6 {[%clk 0:02:49.4]} 48. Rd1 {[%clk 0:00:13.5]} 48...
e5 {[%clk 0:02:46.9]} 49. Bc4 {[%clk 0:00:12.7]} 49... e4 {[%clk 0:02:44.4]} 50.
Rd6+ {[%clk 0:00:07.7]} 50... Ka7 {[%clk 0:02:40]} 51. Rd1 {[%clk 0:00:07.6]}
51... e3 {[%clk 0:02:38]} 52. Ka3 {[%clk 0:00:05.9]} 52... e2 {[%clk 0:02:36.4]}
53. Bxe2 {[%clk 0:00:04.3]} 53... Rxe2 {[%clk 0:02:34.5]} 54. Rd3 {[%clk
0:00:03.7]} 54... Be5 {[%clk 0:02:29.6]} 55. Kb4 {[%clk 0:00:02]} 55... Kxa6
{[%clk 0:02:28.5]} 56. c4 {[%clk 0:00:00.8]} 56... Bg7 {[%clk 0:02:26]} 57. Rd5
{[%clk 0:00:00.5]} 57... Bf8+ {[%clk 0:02:25.3]} 0-1